bitfinex/quotes_SOLUSD_20240917
["timestamp","ask_amount","ask_price","bid_price","bid_amount"]
[1726591638519,0.12549,133.19,133.08,59.2048843]
[1726591638713,0.12549,133.19,133.08,50.0]
[1726591638714,7.63359,133.19,133.08,50.0]
[1726591638918,0.12549,133.2,133.09,23.82970662]
[1726591639339,0.25098,133.21,133.09,23.82970662]
[1726591639839,1.66654481,133.2,133.1,0.12549]
[1726591640142,0.12549,133.19,133.1,20.12549]
[1726591640339,0.12549,133.19,133.1,20.0]
[1726591640637,0.12549,133.18,133.08,20.0]
[1726591640814,7.63469,133.17,133.07,0.3377258]
[1726591641014,0.12549,133.16,133.07,0.3377258]
[1726591641322,0.12549,133.17,133.07,0.3377258]
[1726591642318,0.12549,133.17,133.07,20.3377258]
[1726591643127,0.12549,133.16,133.07,0.3377258]
[1726591644234,0.25098,133.18,133.07,0.3377258]
[1726591644564,0.25098,133.18,133.07,1.84015175]
[1726591646958,0.25098,133.18,133.07,0.3377258]
[1726591647356,0.25098,133.19,133.08,0.12549]
[1726591647661,20.35618255,133.2,133.09,50.0]
[1726591647662,12.84858255,133.2,133.09,50.0]
[1726591647861,0.3377258,133.26,133.13,20.12549]
[1726591647862,7.8422258,133.26,133.13,20.12549]
[1726591648040,7.5052,133.24,133.13,20.0]
[1726591648365,1.66654481,133.23,133.13,20.0]
[1726591648552,7.5048,133.25,133.13,20.0]
[1726591648738,9.17134481,133.25,133.13,20.0]
[1726591649074,7.5052,133.24,133.13,20.0]
[1726591649240,7.5052,133.24,133.12,20.12549]
[1726591649742,1.66654481,133.23,133.12,20.12549]
[1726591649942,9.17274481,133.23,133.11,20.0]
[1726591650142,0.12549,133.22,133.11,20.0]
[1726591650363,0.25098,133.2,133.11,20.0]
[1726591650564,1.91752481,133.2,133.1,20.0]
[1726591650766,7.5082,133.19,133.08,20.0]
[1726591650943,1.91752481,133.2,133.07,50.3377258]
[1726591650944,1.66654481,133.18,133.07,0.3377258]
[1726591651143,0.12549,133.16,133.07,0.3377258]
[1726591651846,0.12549,133.16,133.08,73.82970662]
[1726591652040,0.12549,133.22,133.08,73.82970662]
[1726591652245,0.25098,133.22,133.08,73.82970662]
[1726591652454,1.91752481,133.21,133.09,20.0]
[1726591652641,0.25098,133.19,133.1,1.50220071]
[1726591652838,0.25098,133.19,133.09,20.0]
[1726591652839,0.25098,133.19,133.11,1.50205313]
[1726591653051,0.12549,133.19,133.09,20.0]
[1726591653252,0.12549,133.19,133.1,0.12549]
[1726591653460,0.12549,133.19,133.09,20.0]
[1726591653953,1.91752481,133.2,133.09,20.0]
[1726591654252,1.91752481,133.22,133.09,20.0]
[1726591654450,0.25098,133.19,133.07,20.3377258]
[1726591654651,0.12549,133.17,133.07,20.3377258]
[1726591654877,0.12549,133.17,133.07,0.3377258]
[1726591655085,7.76038,133.17,133.07,0.3377258]
[1726591656060,0.25098,133.15,133.07,0.3377258]
[1726591657182,1.66654481,133.14,133.07,0.3377258]
[1726591657378,23.902374,133.13,133.07,0.3377258]
[1726591658347,1.66654481,133.12,133.07,0.3377258]
[1726591658548,1.79203481,133.13,133.07,0.3377258]
[1726591659073,1.66654481,133.13,133.07,0.3377258]
[1726591659256,23.776884,133.14,133.07,0.3377258]
[1726591659459,1.66654481,133.13,133.07,0.3377258]
[1726591659651,23.776884,133.12,133.07,0.3377258]
[1726591659851,1.66654481,133.11,133.07,0.3377258]
[1726591660175,0.12549,133.14,133.07,0.3377258]
[1726591660559,23.776884,133.13,133.07,0.3377258]
[1726591660761,0.25098,133.12,133.07,0.3377258]
[1726591661057,23.776884,133.13,133.07,0.3377258]
[1726591662192,1.66654481,133.12,133.07,0.3377258]
[1726591662664,1.66654481,133.12,133.06,0.4634677]
[1726591662665,23.776884,133.11,133.06,0.4634677]
[1726591662866,1.66654481,133.1,133.06,0.4634677]
[1726591663369,23.776884,133.09,133.06,0.4634677]
[1726591663577,1.66654481,133.08,133.06,0.4634677]
[1726591663749,0.12549,133.12,133.06,0.4634677]
[1726591664385,23.902374,133.13,133.06,0.4634677]
[1726591664872,30.1,133.17,133.06,0.4634677]
[1726591665052,10.49630401,133.18,133.06,1.96605052]
[1726591665663,7.5087,133.18,133.06,1.96605052]
[1726591665867,7.5087,133.18,133.06,0.4634677]
[1726591666074,23.902374,133.17,133.07,1.50248555]
[1726591666275,23.902374,133.17,133.06,0.4634677]
[1726591666478,31.411574,133.17,133.06,0.4634677]
[1726591666857,23.902374,133.17,133.06,0.4634677]
[1726591667077,0.12549,133.14,133.06,0.4634677]
[1726591667489,0.12549,133.13,133.06,0.4634677]
[1726591668190,23.776884,133.15,133.06,0.4634677]
[1726591668497,23.776884,133.13,133.06,0.4634677]
[1726591668668,1.66654481,133.12,133.06,0.4634677]
[1726591668865,23.902374,133.1,133.06,0.4634677]
[1726591669086,1.66654481,133.09,133.06,0.4634677]
[1726591669463,0.12549,133.09,133.06,0.4634677]
[1726591669666,0.12549,133.07,133.06,0.4634677]
[1726591670079,25.69440881,133.07,133.06,0.4634677]
[1726591670282,25.69440881,133.07,133.01,0.5054311]
[1726591670283,0.12549,133.05,133.01,0.5054311]
[1726591670482,23.902374,133.04,133.01,0.5054311]
[1726591671092,1.66654481,133.03,133.01,0.5054311]
[1726591671595,1.66654481,133.02,133.01,0.5054311]
[1726591671796,1.91752481,133.02,133.01,0.5054311]
[1726591673171,0.25098,133.02,133.01,0.5054311]
[1726591673380,1.91752481,133.02,133.01,0.5054311]
[1726591674072,0.25098,133.01,132.98,0.2573227]
[1726591674269,7.5193,132.99,132.98,0.2573227]
[1726591674592,7.5193,132.99,132.93,0.5054311]
[1726591674593,7.77108,132.98,132.93,0.5054311]
[1726591674890,0.25098,132.96,132.93,0.5054311]
[1726591675075,1.66654481,132.95,132.93,0.5054311]
[1726591675584,23.902374,132.94,132.93,0.5054311]
[1726591675764,23.902374,132.94,132.93,0.5113016]
[1726591676389,25.56891881,132.94,132.93,0.5113016]
[1726591676765,25.69440881,132.94,132.93,0.5113016]
[1726591677209,24.027864,132.94,132.93,0.5113016]
[1726591677898,25.69440881,132.94,132.93,0.5113016]
[1726591678468,12.57574297,132.95,132.93,0.5113016]
[1726591681369,1.66654481,132.94,132.93,0.5113016]
[1726591681569,0.25098,132.94,132.93,0.5113016]
[1726591681783,12.57574297,132.95,132.93,0.5113016]
[1726591682272,1.66654481,132.94,132.93,0.5113016]
[1726591682472,12.57574297,132.95,132.93,0.5113016]
[1726591683198,12.8352368,133.02,132.93,0.5113016]
[1726591683385,1.66654481,133.01,132.93,0.5113016]
[1726591684297,0.25098,133.0,132.93,0.5113016]
[1726591684476,0.25098,133.01,132.93,0.5113016]
[1726591684795,0.12549,133.01,132.93,0.5113016]
[1726591684996,0.12549,133.02,132.93,0.5113016]
[1726591685193,1.66654481,133.02,132.93,0.5113016]
[1726591685410,7.5191,133.0,132.93,0.5113016]
[1726591685697,9.18624481,132.99,132.93,0.5113016]
[1726591685995,1.66654481,132.98,132.93,0.5113016]
[1726591686171,20.22980273,133.0,132.93,0.5113016]
[1726591686370,12.71100273,133.0,132.93,0.5113016]
[1726591686571,25.69440881,132.99,132.93,0.5113016]
[1726591686791,24.027864,132.99,132.93,0.5113016]
[1726591687099,24.027864,132.97,132.93,0.5113016]
[1726591687887,1.66654481,132.96,132.93,0.5113016]
[1726591688095,23.776884,132.97,132.93,0.5113016]
[1726591688291,23.776884,132.98,132.93,0.5113016]
[1726591688505,23.902374,132.99,132.93,0.5113016]
[1726591688691,12.71100273,133.0,132.93,0.5113016]
[1726591688876,1.66654481,132.99,132.93,0.5113016]
[1726591689075,12.71100273,133.0,132.93,0.5113016]
[1726591689486,12.71100273,133.0,132.94,1.43719823]
[1726591689802,12.88818853,133.07,132.94,44.027864]
[1726591690095,12.88818853,133.07,132.94,20.0]
[1726591690294,12.88818853,133.07,132.93,0.5113016]
[1726591691001,23.902374,133.04,132.93,0.5113016]
[1726591691295,24.027864,133.02,132.93,0.5113016]
[1726591691476,24.027864,133.0,132.93,0.5113016]
[1726591691677,1.66654481,132.99,132.93,0.5113016]
[1726591691877,1.66654481,132.98,132.93,0.5113016]
[1726591692274,23.776884,132.97,132.93,0.5113016]
[1726591692501,1.66654481,132.96,132.93,0.5113016]
[1726591692703,1.66654481,132.95,132.93,0.5113016]
[1726591694096,0.12549,132.97,132.93,0.5113016]
[1726591694681,1.79203481,132.97,132.93,0.5113016]
[1726591694886,0.12549,132.96,132.93,0.5113016]
[1726591695598,0.12549,132.98,132.93,0.5113016]
[1726591695781,0.25098,132.99,132.93,0.5113016]
[1726591695978,14.46662555,133.0,132.93,0.5113016]
[1726591696185,12.80008074,133.0,132.94,20.0]
[1726591696496,265.8149,133.07,132.95,1.50395718]
[1726591696497,258.3,133.07,132.95,1.50395718]
[1726591696698,13.01751693,133.08,132.96,21.50382903]
[1726591697277,13.01751693,133.08,132.98,70.12549]
[1726591697494,13.01751693,133.08,132.99,38.12541684]
[1726591697696,0.1490165,133.09,133.0,20.0]
[1726591698207,0.1490165,133.09,133.01,1.5031026]
[1726591698381,0.1490165,133.09,133.02,21.62845537]
[1726591698978,0.1490165,133.09,133.02,20.12549]
[1726591699194,1.81556131,133.09,133.02,20.0]
[1726591699404,0.1490165,133.09,132.99,20.0]
[1726591699996,0.1490165,133.09,132.98,20.0]
[1726591700301,0.25098,133.08,132.96,0.12549]
[1726591700520,9.43172481,133.08,132.95,0.25098]
[1726591700804,1.66654481,133.07,132.94,50.0]
[1726591700996,1.66654481,133.07,132.93,46.4072596]
[1726591700997,7.76638,133.06,132.93,46.4072596]
[1726591701200,0.25098,133.04,132.93,0.5113016]
[1726591701411,1.91752481,133.04,132.93,0.5113016]
[1726591702198,7.5154,133.06,132.93,0.5113016]
[1726591702199,0.25098,133.05,132.93,0.5113016]
[1726591702392,1.91752481,133.05,132.93,20.5113016]
[1726591702597,0.25098,133.05,132.93,58.51122844]
[1726591702787,0.25098,133.05,132.95,20.0]
[1726591702983,0.25098,133.05,132.96,0.12549]
[1726591703303,0.12549,133.07,132.96,0.12549]
[1726591703514,1.79203481,133.07,132.96,0.12549]
[1726591704288,0.12549,133.06,132.96,0.12549]
[1726591704628,1.79203481,133.06,132.96,0.12549]
[1726591704995,0.12549,133.05,132.95,20.0]
[1726591705205,0.12549,133.05,132.94,0.12549]
[1726591705799,7.5149,133.07,132.94,0.12549]
[1726591705800,0.25098,133.07,132.96,0.12549]
[1726591706318,0.25098,133.07,132.96,0.51693383]
[1726591706499,0.25098,133.07,132.96,1.62902135]
[1726591706921,0.25098,133.07,132.96,0.12549]
[1726591707317,0.25098,133.07,132.96,1.62901926]
[1726591707723,0.25098,133.07,132.96,0.12549]
[1726591708234,1.91752481,133.07,132.95,20.0]
[1726591708523,0.25098,133.05,132.93,112.32220894]
[1726591708703,1.91752481,133.05,132.93,112.32220894]
[1726591709723,1.91752481,133.05,132.94,20.12549]
[1726591710399,0.12549,133.03,132.94,0.12549]
[1726591711209,0.12549,133.05,132.94,0.12549]
[1726591711526,0.25098,133.05,132.94,50.12549]
[1726591712025,0.25098,133.05,132.95,81.81090734]
[1726591712415,0.25098,133.05,132.96,1.04138342]
[1726591713020,0.12549,133.07,132.97,0.12549]
[1726591713207,19.49304603,133.08,132.97,20.12549]
[1726591713615,19.49304603,133.08,132.97,81.93639734]
[1726591714028,19.49304603,133.08,132.97,20.0]
[1726591714212,19.49304603,133.08,132.95,20.12549]
[1726591714531,0.25098,133.05,132.96,0.12549]
[1726591714752,0.25098,133.06,132.96,0.12549]
[1726591714926,0.25098,133.07,132.96,0.12549]
[1726591715310,0.12549,133.05,132.96,0.12549]
[1726591715507,1.66654481,133.04,132.96,0.12549]
[1726591715707,0.12549,133.05,132.96,0.12549]
[1726591716114,0.12549,133.06,132.96,0.12549]
[1726591717723,0.12549,133.05,132.94,20.0]
[1726591718033,0.12549,133.03,132.93,20.5113016]
[1726591718241,0.12549,133.03,132.93,0.5113016]
[1726591719034,23.902374,133.03,132.93,0.5113016]
[1726591719244,0.12549,133.02,132.93,0.5113016]
[1726591720335,1.79203481,133.02,132.93,0.5113016]
[1726591720542,7.64429,133.0,132.93,0.5113016]
[1726591720842,0.25098,132.98,132.93,0.5113016]
[1726591723029,23.776884,132.97,132.93,0.5113016]
[1726591723217,1.91752481,132.98,132.93,0.5113016]
[1726591723218,23.776884,132.95,132.93,0.5113016]
[1726591724144,0.25098,132.94,132.93,0.5113016]
[1726591724327,23.776884,132.94,132.93,0.5113016]
[1726591724528,24.027864,132.96,132.93,0.5113016]
[1726591726126,25.69440881,132.96,132.93,0.5113016]
[1726591726326,24.027864,132.96,132.93,0.5113016]
[1726591726622,0.12549,132.94,132.93,0.5113016]
[1726591726823,24.027864,132.94,132.93,0.5113016]
[1726591727031,23.776884,132.94,132.93,0.5113016]
[1726591728730,25.69440881,132.94,132.93,0.5113016]
[1726591730718,23.902374,132.94,132.93,0.5113016]
[1726591731340,24.027864,132.94,132.93,0.5113016]
[1726591732227,23.902374,132.94,132.93,0.5113016]
[1726591732819,24.027864,132.94,132.93,0.5113016]
[1726591733646,23.902374,132.94,132.93,0.5113016]
[1726591737232,23.902374,132.94,132.85,0.2481084]
[1726591737439,23.902374,132.94,132.93,0.414749]
[1726591738643,24.027864,132.94,132.93,0.414749]
[1726591739655,31.549964,132.94,132.93,0.414749]
[1726591740349,23.776884,132.92,132.91,0.2605061]
[1726591740552,33.21770881,132.92,132.91,0.2605061]
[1726591741452,25.69440881,132.92,132.91,0.2605061]
[1726591742268,23.902374,132.9,132.87,0.2605061]
[1726591742553,1.66654481,132.89,132.87,0.2605061]
[1726591743335,23.902374,132.88,132.87,0.2605061]
[1726591743539,24.027864,132.88,132.87,0.2605061]
[1726591744136,31.553364,132.88,132.87,0.2605061]
[1726591744836,7.65179,132.87,132.85,0.2481084]
[1726591745164,25.69440881,132.86,132.85,0.2481084]
[1726591745334,7.5277,132.85,132.83,0.2605061]
[1726591745536,33.22220881,132.84,132.83,0.2605061]
[1726591745845,24.027864,132.84,132.83,0.2605061]
[1726591746041,25.69440881,132.84,132.83,0.2605061]
[1726591746243,33.22220881,132.84,132.83,0.2605061]
[1726591746558,0.25098,132.81,132.79,0.2605061]
[1726591746731,23.902374,132.8,132.79,0.2605061]
[1726591746935,31.557964,132.8,132.79,0.2605061]
[1726591747155,43.90078588,132.8,132.79,0.2605061]
[1726591748359,0.25098,132.79,132.76,0.6500074]
[1726591748591,0.25098,132.77,132.76,0.6500074]
[1726591748861,0.12549,132.77,132.76,0.6500074]
[1726591749063,23.776884,132.79,132.76,0.6500074]
[1726591751675,0.25098,132.78,132.76,0.6500074]
[1726591752847,23.776884,132.79,132.76,0.6500074]
[1726591753267,1.66654481,132.78,132.76,0.6500074]
[1726591753767,23.776884,132.77,132.76,0.6500074]
[1726591753945,25.44342881,132.77,132.76,0.6500074]
[1726591754144,25.69440881,132.77,132.76,0.6500074]
[1726591755553,24.027864,132.77,132.76,0.6500074]
[1726591755854,23.776884,132.77,132.76,0.6500074]
[1726591756371,24.027864,132.77,132.76,0.6500074]
[1726591756579,25.69440881,132.77,132.76,0.6500074]
[1726591757046,24.027864,132.77,132.76,0.6500074]
[1726591757857,23.776884,132.77,132.76,0.6500074]
[1726591759272,12.34282188,132.8,132.76,0.6500074]
[1726591759456,24.027864,132.79,132.76,0.6500074]
[1726591760470,23.776884,132.77,132.76,0.6500074]
[1726591760644,12.34282188,132.8,132.76,0.6500074]
[1726591760850,1.66654481,132.79,132.76,0.6500074]
[1726591761075,12.34282188,132.8,132.76,0.6500074]
[1726591761660,14.00936669,132.8,132.76,0.6500074]
[1726591761964,23.902374,132.79,132.76,0.6500074]
[1726591763064,12.34282188,132.8,132.76,0.6500074]
[1726591764150,19.87292188,132.8,132.76,0.6500074]
[1726591764352,24.027864,132.79,132.76,0.6500074]
[1726591764655,24.027864,132.77,132.76,0.6500074]
[1726591766078,23.902374,132.77,132.76,0.6500074]
[1726591766673,23.776884,132.77,132.76,0.6500074]
[1726591767485,12.34282188,132.8,132.76,0.6500074]
[1726591768349,3.06900808,132.87,132.76,0.6500074]
[1726591768350,7.5272,132.86,132.76,0.6500074]
[1726591768579,12.87391092,132.88,132.76,0.6500074]
[1726591768886,14.54045573,132.88,132.76,0.6500074]
[1726591769059,12.78404772,132.87,132.76,0.6500074]
[1726591769387,7.5275,132.85,132.76,0.6500074]
[1726591769676,0.25098,132.82,132.76,0.6500074]
[1726591770459,0.25098,132.8,132.76,0.6500074]
[1726591771667,23.776884,132.79,132.76,0.6500074]
[1726591771867,0.12549,132.77,132.76,0.6500074]
[1726591772079,23.902374,132.77,132.76,0.6500074]
[1726591772463,24.027864,132.77,132.76,0.6500074]
[1726591773381,23.902374,132.77,132.76,0.6500074]
[1726591773556,23.776884,132.77,132.76,0.6500074]
[1726591775094,0.25098,132.8,132.76,0.6500074]
[1726591775261,23.776884,132.82,132.76,0.6500074]
[1726591775585,12.51969673,132.83,132.76,0.6500074]
[1726591778680,23.902374,132.82,132.76,0.6500074]
[1726591778876,1.66654481,132.81,132.76,0.6500074]
[1726591779081,23.776884,132.8,132.76,0.6500074]
[1726591779409,1.66654481,132.79,132.76,0.6500074]
[1726591780283,0.12549,132.81,132.76,0.6500074]
[1726591780484,12.51969673,132.83,132.76,0.6500074]
[1726591781079,12.51969673,132.83,132.76,20.6500074]
[1726591781578,9.19224481,132.88,132.76,20.6500074]
[1726591781778,12.59141853,132.89,132.77,0.12549]
[1726591782108,12.59141853,132.89,132.79,0.12549]
[1726591782287,12.59141853,132.89,132.8,20.0]
[1726591783092,1.66654481,132.88,132.78,20.0]
[1726591783300,12.59141853,132.89,132.76,20.6500074]
[1726591783604,1.66654481,132.88,132.78,20.0]
[1726591784305,12.59141853,132.89,132.79,0.12549]
[1726591785316,12.59141853,132.89,132.8,20.0]
[1726591785500,12.59141853,132.89,132.81,38.22161778]
[1726591785800,258.3,132.95,132.82,20.0]
[1726591785801,1.66654481,132.94,132.82,20.0]
[1726591786006,20.54598625,132.95,132.82,20.0]
[1726591786211,1.66654481,132.94,132.82,20.0]
[1726591786388,9.18894481,132.94,132.82,20.0]
[1726591786710,12.37505503,132.93,132.81,0.12549]
[1726591786879,0.12549,132.92,132.81,50.12549]
[1726591787074,0.12549,132.92,132.82,20.0]
[1726591787475,12.37505503,132.93,132.82,20.0]
[1726591787688,12.37505503,132.93,132.8,20.0]
[1726591787886,12.37505503,132.93,132.76,50.6500074]
[1726591788103,7.5245,132.9,132.76,50.6500074]
[1726591788298,12.37505503,132.93,132.78,50.0]
[1726591788504,12.37505503,132.93,132.79,38.09612778]
[1726591788716,0.25098,132.91,132.79,38.09612778]
[1726591789307,7.77498,132.91,132.8,20.12549]
[1726591789514,0.25098,132.89,132.8,20.12549]
[1726591791290,7.77718,132.87,132.76,20.6500074]
[1726591791489,0.12549,132.85,132.76,20.6500074]
[1726591791702,12.37505503,132.93,132.77,38.09612778]
[1726591791903,23.902374,132.88,132.77,38.09612778]
[1726591792217,24.027864,132.88,132.76,0.6500074]
[1726591792516,31.555264,132.85,132.76,0.6500074]
[1726591792713,24.027864,132.85,132.76,0.6500074]
[1726591792885,0.25098,132.85,132.76,0.6500074]
[1726591793314,0.25098,132.83,132.76,0.6500074]
[1726591793626,7.529,132.82,132.76,0.6500074]
[1726591793921,33.22400881,132.81,132.76,0.6500074]
[1726591794094,31.557464,132.81,132.76,0.6500074]
[1726591794716,24.027864,132.79,132.76,0.6500074]
[1726591795097,0.25098,132.79,132.76,0.6500074]
[1726591795914,0.12549,132.79,132.76,0.6500074]
[1726591796488,23.776884,132.8,132.76,0.6500074]
[1726591796785,12.36364846,132.83,132.76,0.6500074]
[1726591797911,1.66654481,132.82,132.76,0.6500074]
[1726591798217,23.902374,132.82,132.76,0.6500074]
[1726591798522,0.12549,132.81,132.76,0.6500074]
[1726591799294,23.902374,132.82,132.76,0.6500074]
[1726591799295,23.776884,132.82,132.76,0.6500074]
[1726591800206,12.36364846,132.83,132.76,0.6500074]
[1726591800693,1.66654481,132.82,132.76,0.6500074]
[1726591801107,1.66654481,132.81,132.76,0.6500074]
[1726591801493,23.776884,132.8,132.76,0.6500074]
[1726591801699,1.66654481,132.79,132.76,0.6500074]
[1726591801891,23.776884,132.78,132.76,0.6500074]
[1726591802095,25.56891881,132.77,132.76,0.6500074]
[1726591802319,0.12549,132.8,132.76,0.6500074]
[1726591802497,23.776884,132.78,132.76,0.6500074]
[1726591802917,12.36364846,132.83,132.76,0.6500074]
[1726591803122,24.027864,132.82,132.76,0.6500074]
[1726591803633,25.69440881,132.82,132.76,0.6500074]
[1726591803820,33.22360881,132.82,132.76,0.6500074]
[1726591804127,24.027864,132.82,132.76,0.6500074]
[1726591804835,1.66654481,132.81,132.76,0.6500074]
[1726591805011,24.027864,132.8,132.76,0.6500074]
[1726591805207,24.027864,132.78,132.76,0.6500074]
[1726591805407,1.91752481,132.77,132.76,0.6500074]
[1726591805619,25.69440881,132.77,132.76,0.6500074]
[1726591806211,33.22620881,132.77,132.76,0.6500074]
[1726591806414,31.559664,132.77,132.76,0.6500074]
[1726591806933,24.027864,132.77,132.76,0.6500074]
[1726591807101,25.69440881,132.77,132.76,0.6500074]
[1726591807628,33.22620881,132.77,132.76,0.6500074]
[1726591808006,25.69440881,132.77,132.76,0.6500074]
[1726591808727,24.027864,132.77,132.76,0.6500074]
[1726591809024,24.027864,132.77,132.73,0.2573647]
[1726591809025,0.25098,132.76,132.73,0.2573647]
[1726591809228,0.25098,132.76,132.73,0.9150757]
[1726591809522,12.53971516,132.79,132.73,0.9150757]
[1726591809731,1.66654481,132.78,132.73,0.9150757]
[1726591810301,12.53971516,132.79,132.73,0.9150757]
[1726591810698,25.69440881,132.78,132.73,0.9150757]
[1726591811104,24.027864,132.78,132.73,0.9150757]
[1726591811526,24.027864,132.76,132.73,0.9150757]
[1726591811728,25.69440881,132.76,132.73,0.9150757]
[1726591811934,0.25098,132.76,132.73,0.9150757]
[1726591812123,24.027864,132.74,132.73,0.9150757]
[1726591813629,25.69440881,132.74,132.73,0.9150757]
[1726591816035,25.69440881,132.74,132.69,0.5054731]
[1726591816216,24.027864,132.72,132.69,0.5054731]
[1726591816431,24.027864,132.7,132.69,0.5054731]
[1726591816618,25.69440881,132.7,132.69,0.5054731]
[1726591818031,31.563564,132.7,132.69,0.5054731]
[1726591818430,24.027864,132.7,132.69,0.5054731]
[1726591818638,25.69440881,132.7,132.69,0.5054731]
[1726591819639,25.69440881,132.7,132.65,0.2573647]
[1726591819640,24.027864,132.66,132.65,0.2573647]
[1726591819854,25.69440881,132.66,132.65,0.2573647]
[1726591820028,33.23240881,132.66,132.65,0.2573647]
[1726591820557,24.027864,132.64,132.61,0.3830075]
[1726591820716,18.8399,132.7,132.61,0.3830075]
[1726591820717,24.027864,132.62,132.61,0.3830075]
[1726591821226,23.902374,132.62,132.61,0.3830075]
[1726591821421,23.776884,132.62,132.61,0.3830075]
[1726591821633,24.027864,132.62,132.61,0.3830075]
[1726591822216,23.902374,132.62,132.61,0.3830075]
[1726591822729,24.027864,132.62,132.61,0.3830075]
[1726591823039,25.69440881,132.62,132.61,0.3830075]
[1726591823717,25.69440881,132.62,132.56,0.4064026]
[1726591823718,0.25098,132.61,132.56,0.4064026]
[1726591824642,23.902374,132.59,132.58,7.5426]
[1726591825146,0.12549,132.58,132.57,7.5431]
[1726591825517,25.69440881,132.58,132.57,7.5431]
[1726591826216,25.69440881,132.58,132.56,7.9499026]
[1726591826422,24.027864,132.57,132.56,7.9499026]
[1726591827040,24.027864,132.57,132.56,0.4064026]
[1726591827245,25.69440881,132.57,132.56,0.4064026]
[1726591827819,24.027864,132.57,132.56,7.9501026]
[1726591828548,24.027864,132.57,132.56,0.4064026]
[1726591828921,24.027864,132.57,132.56,7.9501026]
[1726591829340,23.902374,132.57,132.56,7.9501026]
[1726591830415,23.902374,132.57,132.56,0.4064026]
[1726591830916,23.902374,132.57,132.56,7.9501026]
[1726591831122,23.902374,132.57,132.56,0.4064026]
[1726591831655,25.56891881,132.57,132.56,0.4064026]
[1726591831825,25.56891881,132.57,132.53,9.6981084]
[1726591832026,7.5449,132.54,132.5,0.4064026]
[1726591832226,1.79203481,132.53,132.5,0.4064026]
[1726591832650,0.12549,132.53,132.5,0.4064026]
[1726591832846,0.25098,132.53,132.52,7.546]
[1726591833524,0.12549,132.53,132.52,7.546]
[1726591834120,30.1,132.6,132.56,7.5432]
[1726591834347,30.1,132.6,132.5,0.4064026]
[1726591834348,7.5431,132.58,132.52,7.5459]
[1726591834547,1.66654481,132.57,132.5,0.4064026]
[1726591834724,1.66654481,132.57,132.54,7.5447]
[1726591835046,7.5415,132.6,132.5,0.4064026]
[1726591835047,1.66654481,132.56,132.5,0.4064026]
[1726591835224,0.12549,132.57,132.5,0.4064026]
[1726591835424,0.12549,132.57,132.56,7.5437]
[1726591836054,0.12549,132.57,132.55,7.5442]
[1726591836236,0.12549,132.57,132.54,7.5447]
[1726591836419,0.12549,132.58,132.54,7.5447]
[1726591836749,0.25098,132.59,132.55,7.5442]
[1726591838128,0.25098,132.57,132.55,7.5442]
[1726591838446,1.91752481,132.57,132.54,7.5447]
[1726591838752,1.91752481,132.57,132.55,7.5443]
[1726591838925,1.91752481,132.57,132.54,7.5448]
[1726591840347,0.25098,132.58,132.55,7.5442]
[1726591840554,0.25098,132.57,132.5,0.4064026]
[1726591840852,0.25098,132.57,132.53,7.545]
[1726591840853,0.12549,132.55,132.53,7.545]
[1726591841031,0.25098,132.55,132.53,7.545]
[1726591841232,0.12549,132.55,132.53,7.545]
[1726591841628,0.12549,132.56,132.53,7.545]
[1726591842328,0.12549,132.55,132.54,7.5446]
[1726591842943,27.5415,132.6,132.5,0.4064026]
[1726591842944,1.66654481,132.58,132.56,7.5436]
[1726591843155,0.12549,132.57,132.56,7.5436]
[1726591843331,1.79203481,132.57,132.56,7.5436]
[1726591843737,1.79203481,132.57,132.5,0.4064026]
[1726591844346,0.12549,132.57,132.5,0.4064026]
[1726591844548,1.79203481,132.57,132.5,0.4064026]
[1726591844738,1.79203481,132.57,132.54,7.5445]
[1726591844940,0.12549,132.56,132.55,7.5442]
[1726591845343,0.12549,132.56,132.54,7.5447]
[1726591845649,23.902374,132.55,132.53,7.5453]
[1726591845828,1.66654481,132.54,132.53,7.5453]
[1726591846660,23.902374,132.55,132.54,7.5448]
[1726591847451,0.12549,132.55,132.54,7.5448]
[1726591847629,0.25098,132.58,132.56,7.5433]
[1726591847831,23.776884,132.57,132.5,0.4064026]
[1726591848032,1.91752481,132.58,132.5,0.4064026]
[1726591848033,23.902374,132.55,132.54,7.5448]
[1726591848249,24.027864,132.55,132.54,7.5448]
[1726591848757,0.25098,132.54,132.52,7.5456]
[1726591848964,1.91752481,132.54,132.52,7.5456]
[1726591849150,1.91752481,132.54,132.53,7.5454]